{"text_format":"1","workbook":"xlsx","n_sheets":3,"sheets":["FORMATO","INSTRUCTIVO","CONTROL"],"not_rendered":{"charts":0,"images":3,"macros":0,"external_links":1,"defined_names":20,"comments":0,"pivot_tables":0},"unopened":[],"bounds":{"document_bytes":16777216,"sheet_cells":100000,"rows_first":2000,"rows_last":500,"rows_between":2000,"halvings":0,"cell_chars":16384,"cell_head_chars":4096},"cells_cut":0,"cells_raw":0,"read":"whole","date_system":"1900"}

{"sheet":"FORMATO","index":0,"n_rows":222,"n_cols":28,"rows_kept":222,"cut":false,"hidden":false,"merged":[[165,2,165,5],[166,2,166,5],[164,6,164,7],[164,8,164,9],[165,6,165,7],[165,8,165,9],[166,6,166,7],[166,8,166,9],[86,1,86,27],[87,1,87,27],[88,1,89,5],[88,6,89,8],[88,9,89,9],[88,10,89,13],[88,14,89,15],[88,16,88,23],[88,24,89,25],[88,26,89,27],[89,16,89,17],[89,18,89,19],[89,20,89,21],[89,22,89,23],[90,1,90,5],[90,6,90,8],[76,24,76,25],[77,1,77,27],[78,1,78,27],[76,1,76,5],[76,6,76,11],[79,26,79,27],[76,26,76,27],[81,1,81,5],[81,6,81,9],[76,20,76,21],[76,22,76,23],[76,16,76,17],[76,18,76,19],[76,12,76,15],[60,1,60,27],[61,2,61,6],[61,8,61,9],[171,22,171,24],[171,25,171,27],[91,24,91,25],[91,26,91,27],[91,1,91,5],[91,6,91,8],[171,1,171,2],[171,3,171,5],[171,6,171,9],[171,10,171,12],[171,13,171,16],[171,17,171,21],[91,18,91,19],[91,20,91,21],[91,22,91,23],[92,1,92,5],[92,6,92,8],[92,14,92,15],[93,20,93,21],[93,22,93,23],[93,24,93,25],[56,1,56,27],[57,2,57,6],[57,8,57,9],[57,11,57,19],[57,20,57,21],[57,22,57,27],[58,1,58,27],[59,2,59,6],[59,8,59,9],[59,11,59,19],[59,20,59,21],[59,22,59,27],[4,6,4,21],[5,0,5,5],[5,7,5,13],[5,14,5,23],[6,0,6,5],[6,7,6,13],[6,14,6,23],[7,0,7,1],[7,3,7,5],[7,7,7,13],[7,14,7,23],[8,0,8,1],[8,3,8,5],[8,6,8,13],[8,14,8,23],[11,6,11,7],[11,16,11,20],[11,21,11,23],[11,25,11,27],[14,0,14,28],[15,1,15,27],[16,1,19,27],[20,1,20,27],[21,1,21,2],[21,3,21,22],[21,23,21,24],[21,25,21,27],[22,1,22,5],[22,23,22,27],[23,1,23,2],[23,9,23,12],[23,13,23,16],[23,17,23,27],[24,1,24,8],[24,9,24,12],[24,13,24,16],[24,17,24,27],[25,1,25,8],[25,9,25,12],[25,13,25,16],[25,17,25,27],[26,1,26,8],[26,9,26,12],[26,13,26,16],[26,17,26,27],[27,1,27,8],[27,9,27,12],[27,13,27,16],[27,17,27,27],[29,1,29,2],[29,3,29,21],[29,22,29,24],[29,25,29,27],[31,1,31,2],[31,9,31,12],[31,13,31,16],[31,17,31,27],[32,1,32,8],[32,9,32,12],[32,13,32,16],[32,17,32,27],[33,1,33,8],[33,9,33,12],[33,13,33,16],[33,17,33,27],[34,1,34,8],[34,9,34,12],[34,13,34,16],[34,17,34,27],[35,1,35,8],[35,9,35,12],[35,13,35,16],[35,17,35,27],[37,0,37,28],[39,1,40,9],[39,10,40,17],[39,18,40,22],[39,23,40,27],[41,1,41,9],[41,10,41,17],[41,18,41,22],[41,23,41,27],[42,1,42,9],[42,10,42,17],[42,18,42,22],[42,23,42,27],[43,1,43,9],[43,10,43,17],[43,18,43,22],[43,23,43,27],[45,0,45,28],[47,1,47,27],[51,1,51,27],[52,0,52,28],[54,1,55,6],[54,7,55,7],[54,8,55,9],[54,10,54,21],[54,22,55,27],[55,11,55,19],[48,1,48,27],[49,1,49,27],[50,1,50,27],[55,20,55,21],[61,11,61,19],[61,20,61,21],[61,22,61,27],[62,1,62,27],[63,2,63,6],[63,8,63,9],[63,11,63,19],[63,20,63,21],[63,22,63,27],[64,1,64,27],[65,2,65,6],[65,8,65,9],[65,11,65,19],[65,20,65,21],[65,22,65,27],[67,10,67,27],[69,0,69,28],[71,1,71,27],[67,8,67,9],[67,1,67,6],[72,1,73,5],[72,6,73,11],[72,12,73,15],[72,16,72,19],[72,20,72,23],[72,24,72,27],[73,18,73,19],[73,20,73,21],[73,22,73,23],[73,24,73,25],[73,26,73,27],[73,16,73,17],[74,22,74,23],[74,24,74,25],[74,26,74,27],[75,26,75,27],[74,1,74,5],[74,6,74,11],[74,12,74,15],[74,16,74,17],[74,18,74,19],[74,20,74,21],[75,1,75,5],[75,6,75,11],[75,12,75,15],[75,16,75,17],[75,18,75,19],[75,20,75,21],[75,22,75,23],[75,24,75,25],[84,1,84,9],[85,1,85,9],[85,10,85,27],[79,1,80,5],[79,6,80,9],[79,10,79,11],[79,12,79,13],[82,1,82,5],[82,6,82,9],[83,1,83,5],[79,14,79,15],[79,16,79,17],[79,18,79,19],[79,20,79,21],[79,22,79,23],[79,24,79,25],[83,6,83,9],[90,10,90,13],[90,14,90,15],[92,10,92,13],[92,26,92,27],[90,20,90,21],[90,22,90,23],[90,24,90,25],[90,26,90,27],[91,10,91,13],[90,16,90,17],[90,18,90,19],[91,14,91,15],[91,16,91,17],[92,16,92,17],[92,18,92,19],[92,20,92,21],[92,22,92,23],[92,24,92,25],[97,1,97,15],[97,16,97,27],[93,1,93,15],[93,16,93,17],[93,18,93,19],[93,26,93,27],[95,1,95,15],[103,5,103,8],[103,9,103,11],[103,12,103,15],[103,16,103,18],[99,1,99,27],[100,19,100,21],[100,1,100,4],[101,16,101,18],[101,19,101,21],[100,22,100,23],[100,9,100,11],[101,12,101,15],[103,22,103,23],[103,24,103,27],[95,16,95,27],[96,1,96,15],[96,16,96,27],[106,1,106,15],[106,16,106,27],[107,1,107,15],[107,16,107,27],[108,1,108,15],[108,16,108,27],[110,1,110,27],[112,1,112,4],[112,5,112,10],[112,11,112,12],[112,13,112,16],[112,17,112,27],[113,1,113,4],[113,5,113,10],[113,11,113,12],[113,13,113,16],[113,17,113,27],[114,1,114,4],[114,5,114,10],[114,11,114,12],[114,13,114,16],[114,17,114,27],[115,1,115,4],[115,5,115,10],[115,11,115,12],[115,13,115,16],[115,17,115,27],[117,0,117,26],[117,27,117,28],[119,1,119,27],[120,0,121,0],[120,1,121,1],[120,2,120,6],[120,7,120,8],[120,9,120,10],[120,11,120,14],[120,15,120,18],[120,19,120,20],[120,21,120,22],[120,23,120,27],[121,3,121,6],[121,11,121,12],[121,13,121,14],[121,15,121,16],[121,17,121,18],[122,17,122,18],[124,3,124,6],[124,15,124,16],[124,17,124,18],[123,17,123,18],[126,1,126,27],[123,3,123,6],[122,3,122,6],[122,11,122,12],[122,13,122,14],[123,11,123,12],[124,11,124,12],[123,13,123,14],[124,13,124,14],[123,15,123,16],[127,1,127,14],[127,15,127,27],[128,1,128,3],[128,4,128,7],[128,8,128,10],[128,11,128,14],[128,15,128,16],[128,17,128,20],[128,21,128,23],[128,24,128,27],[129,1,129,3],[129,4,129,7],[129,8,129,10],[129,11,129,14],[129,15,129,16],[129,17,129,20],[130,1,130,3],[130,4,130,7],[130,8,130,10],[130,11,130,14],[130,15,130,16],[130,17,130,20],[129,21,129,23],[129,24,129,27],[130,21,130,23],[130,24,130,27],[131,21,131,23],[131,24,131,27],[132,15,132,16],[132,17,132,20],[132,24,132,27],[131,8,131,10],[131,11,131,14],[131,15,131,16],[131,17,131,20],[131,1,131,3],[131,4,131,7],[133,1,133,27],[134,1,134,3],[134,4,134,10],[134,11,134,20],[134,21,134,27],[132,2,132,3],[132,4,132,7],[132,11,132,14],[135,1,135,3],[135,4,135,10],[135,11,135,20],[135,21,135,27],[136,1,136,3],[136,4,136,10],[136,11,136,20],[136,21,136,27],[137,1,137,3],[137,4,137,10],[137,11,137,20],[137,21,137,27],[138,0,138,8],[139,0,139,28],[140,0,140,28],[141,1,141,27],[143,1,143,9],[143,10,143,17],[143,18,143,22],[143,23,143,27],[144,1,144,9],[144,10,144,17],[144,18,144,22],[144,23,144,27],[145,1,145,9],[145,10,145,17],[145,18,145,22],[145,23,145,27],[146,1,146,9],[146,10,146,17],[146,18,146,22],[146,23,146,27],[148,1,148,27],[149,1,149,17],[150,1,150,27],[151,1,151,9],[151,17,151,21],[151,22,151,27],[153,1,153,27],[154,1,154,9],[154,10,154,13],[154,14,154,17],[154,18,154,21],[154,22,154,27],[155,1,155,9],[155,10,155,13],[155,14,155,17],[155,18,155,21],[155,22,155,27],[156,1,156,9],[156,10,156,13],[156,14,156,17],[156,18,156,21],[157,1,157,9],[157,10,157,13],[157,14,157,17],[157,18,157,21],[157,22,157,27],[160,0,160,28],[163,8,163,9],[163,6,163,7],[163,2,163,5],[164,10,164,12],[164,13,164,16],[164,17,164,21],[164,22,164,24],[162,1,162,27],[163,10,163,12],[163,13,163,16],[163,17,163,21],[164,25,164,27],[163,22,163,24],[163,25,163,27],[164,2,164,5],[165,10,165,12],[165,13,165,16],[165,17,165,21],[165,22,165,24],[165,25,165,27],[166,10,166,12],[166,13,166,16],[166,17,166,21],[166,22,166,24],[166,25,166,27],[168,1,168,27],[169,1,169,2],[169,3,169,5],[169,6,169,9],[169,10,169,12],[169,13,169,16],[169,17,169,21],[100,16,100,18],[101,5,101,8],[101,9,101,11],[101,24,101,27],[122,15,122,16],[102,12,102,15],[102,16,102,18],[102,19,102,21],[102,22,102,23],[100,24,100,27],[101,1,101,4],[102,1,102,4],[100,5,100,8],[100,12,100,15],[169,22,169,24],[169,25,169,27],[104,1,104,4],[170,1,170,2],[170,3,170,5],[170,6,170,9],[170,10,170,12],[170,13,170,16],[170,17,170,21],[170,22,170,24],[172,22,172,24],[172,25,172,27],[170,25,170,27],[173,13,173,16],[174,1,174,21],[174,22,174,27],[176,1,176,27],[172,1,172,2],[172,3,172,5],[172,6,172,9],[172,10,172,12],[177,1,177,27],[172,13,172,16],[172,17,172,21],[178,22,178,27],[179,1,179,21],[179,22,179,27],[180,1,180,21],[180,22,180,27],[181,1,181,21],[181,22,181,27],[188,20,188,23],[188,24,188,25],[182,1,182,27],[183,1,183,21],[183,22,183,27],[184,1,184,27],[185,1,185,27],[187,1,187,5],[187,6,187,8],[192,1,192,27],[194,1,194,27],[189,20,189,23],[189,24,189,25],[190,9,190,11],[190,12,190,15],[195,1,196,9],[195,10,196,13],[195,14,196,17],[195,18,195,21],[195,22,196,27],[196,18,196,19],[196,20,196,21],[189,9,189,11],[190,16,190,19],[190,20,190,23],[189,12,189,15],[189,16,189,19],[190,1,190,5],[190,6,190,8],[189,26,189,27],[190,26,190,27],[189,1,189,5],[189,6,189,8],[197,1,197,9],[197,10,197,13],[197,14,197,17],[197,18,197,19],[197,20,197,21],[197,22,197,27],[198,1,198,9],[198,10,198,13],[198,14,198,17],[198,18,198,19],[198,20,198,21],[198,22,198,27],[199,1,199,9],[199,10,199,13],[199,14,199,17],[199,18,199,19],[199,20,199,21],[199,22,199,27],[210,17,210,27],[201,1,201,27],[202,1,202,27],[203,1,203,27],[204,1,204,27],[205,1,205,27],[206,0,206,26],[206,27,206,28],[212,1,212,12],[212,13,212,14],[212,15,212,16],[212,17,212,27],[208,1,209,12],[208,13,208,16],[208,17,209,27],[209,13,209,14],[209,15,209,16],[210,1,210,12],[211,13,211,14],[211,15,211,16],[211,17,211,27],[210,13,210,14],[210,15,210,16],[211,1,211,12],[217,1,217,9],[217,16,217,23],[218,1,218,9],[218,16,218,23],[213,1,213,12],[213,13,213,14],[213,15,213,16],[213,17,213,27],[214,1,214,12],[214,13,214,14],[216,1,216,9],[216,16,216,23],[214,15,214,16],[214,17,214,27],[104,5,104,8],[104,19,104,21],[104,22,104,23],[103,1,103,4],[102,5,102,8],[102,9,102,11],[190,24,190,25],[66,1,66,27],[187,9,187,11],[187,12,187,15],[187,16,187,19],[187,20,187,23],[187,24,187,25],[103,19,103,21],[102,24,102,27],[101,22,101,23],[187,26,187,27],[188,26,188,27],[188,9,188,11],[188,12,188,15],[188,1,188,5],[188,6,188,8],[188,16,188,19],[178,1,178,21],[0,25,3,28],[0,0,0,24],[1,0,1,24],[2,22,2,24],[3,22,3,24],[2,0,2,3],[3,0,3,3],[2,4,2,21],[3,4,3,21]]}
["FORMATO"]
[{"$f":"CONTROL!A2","v":"\tINFORME MENSUAL AMBIENTAL Y SST DE INTERVENTORÍA ETAPA CONSTRUCCIÓN Y CONSERVACIÓN"}]
["CÓDIGO",null,null,null,"PROCESO",null,null,null,null,null,null,null,null,null,null,null,null,null,null,null,null,null,"VERSIÓN"]
[{"$f":"+CONTROL!A4","v":"FO-AC-25"},null,null,null,{"$f":"+CONTROL!C4","v":"PRACTICAS INTEGRALES DE GESTIÒN"},null,null,null,null,null,null,null,null,null,null,null,null,null,null,null,null,null,{"$f":"+CONTROL!H4","v":5}]
[null,null,"CICLO DE VIDA DE PROYECTO",null,null,null,"CONSTRUCCIÓN Y CONSERVACION"]
[null,null,null,null,null,null,null,"SUBDIRECCIÓN GENERAL"]
["Fecha",null,null,null,null,null,null,"DIRECCIÓN TÉCNICA"]
["DD",null,"MM","AÑO",null,null,null,"SUBDIRECCIÓN TÉCNICA"]
[]
[]
[]
[null,null,null,"Informe N°",null,null,null,null,null,null,null,null,null,null,null,null,"Correspondiente al periodo entre",null,null,null,null,null,null,null,"y"]
[]
[null,null,null,null,null,null,null,null," "]
["A. DATOS GENERALES DEL CONTRATO"]
[null,"OBJETO DEL CONTRATO DE OBRA"]
[]
[]
[]
[]
[]
[null,"CONTRATISTA",null,null,null,null,null,null,null,null,null,null,null,null,null,null,null,null,null,null,null,null,null,"Cto. Obra No."]
[]
[null,null,null,null,null,null,null,null,null,"Fecha de Inicio",null,null,null,"Fecha de Terminación",null,null,null,"Observaciones, Otros Sí, Suspensiones, etc."]
[null,"Contrato"]
[null,"Pre Construcción / Etapa Preliminar"]
[null,"Construcción "]
[null,"Conservación"]
[]
[null,"INTERVENTOR",null,null,null,null,null,null,null,null,null,null,null,null,null,null,null,null,null,null,null,null,"Cto. Interventoría No."]
[]
[null,null,null,null,null,null,null,null,null,"Fecha de Inicio",null,null,null,"Fecha de Terminación",null,null,null,"Observaciones, Otros Sí, Suspensiones, etc."]
[null,"Contrato"]
[null,"Pre Construcción / Etapa Preliminar"]
[null,"Construcción "]
[null,"Conservación"]
[]
["B.  PERMISOS AMBIENTALES DEL PROYECTO"]
[]
[null,"PERMISO",null,null,null,null,null,null,null,null,"ESTADO",null,null,null,null,null,null,null,"OBLIGACIONES DERIVADAS",null,null,null,null,"OBSERVACIONES"]
[]
[]
[]
[]
[]
["C. NOVEDADES AMBIENTALES DEL PROYECTO "]
[]
[null,"Diligencie las novedades relacionadas con el componente ambiental tales como:"]
[null,"Seguimientos por parte de la Autoridad Ambiental"]
[null,"Monitoreos realizados en el mes"]
[null,"Otros "]
[]
["D. EVALUACIÓN DEL SISTEMA DE GESTION AMBIENTAL"]
[]
[null,"COMPONENTE AMBIENTAL",null,null,null,null,null,"%  import. ambiental","% desempeño mes",null,"DESCRIPCIÓN DEL INCUMPLIMIENTO",null,null,null,null,null,null,null,null,null,null,null,"Medidas Correctivas"]
[null,null,null,null,null,null,null,null,null,null,"ÍTEM INCUMPLIDO","DESCRIPCIÓN GENERAL",null,null,null,null,null,null,null,null,"% CALIFICACIÓN ÍTEM"]
[]
[null," A ","CUMPLIMIENTO A OBLIGACIONES AMBIENTALES Y SST CONTRACTUALES"]
[]
[null,"B","MANEJO AMBIENTAL EN LA EJECUCION DE ACTIVIDADES CONSTRUCTIVAS"]
[]
[null,"C","MANEJO DE LA VEGETACIÓN Y PAISAJISMO"]
[]
[null,"D","GESTION EN SEGURIDAD Y SALUD EN EL TRABAJO"]
[]
[null,"E","PROGRAMA DE SEÑALIZACION DE SEGURIDAD"]
[]
[null,"TOTAL",null,null,null,null,null,{"$f":"+H58+H60+H62+H64+H66","v":0},{"$f":"+I58+I60+I62+I64+I66","v":0}]
[]
["E. MANEJO DE MATERIALES Y RESIDUOS DE CONSTRUCCIÓN Y DEMOLICION"]
[]
[null,"1. CONTROL DE MANEJO DE MATERIALES  (Consolidado formato Control de materiales pétreos)"]
[null,"Tipo de material recibido",null,null,null,null,"Razón social  del Proveedor",null,null,null,null,null,"Aprobación Autoridad Ambiental y/o No. Registro Directorio Proveedores IDU",null,null,null,"Cantidad Total Recibido (M3)",null,null,null,"Cantidad Certificada (M3)",null,null,null,"Cantidad por Certificar (M3)"]
[null,null,null,null,null,null,null,null,null,null,null,null,null,null,null,null,"Periodo",null,"Acumulado",null,"Periodo",null,"Acumulado",null,"Periodo",null,"Acumulado"]
[]
[]
[]
[]
[null,"2. SEGUIMIENTO AL MANEJO DE RESIDUOS DE CONSTRUCCIÓN Y DEMOLICIÓN (Consolidado formato  Control de Residuos de Construcción y Demolición generado)"]
[null,"Sitio de Disposición ",null,null,null,null,"Aprobación Autoridad Ambiental y/o No. Registro Directorio Proveedores IDU",null,null,null,"Material Orgánico (Pedones y Cespedones) (M3)",null,"Material de Excavación (M3)",null,"Demolición Concreto (M3)",null,"Demolición Asfalto (M3)",null,"Demolición Edificaciones (M3)",null,"Volúmen Total Generado (M3)",null,"Volúmen Reutilizado (M3)",null,"Cantidad Certificada (M3)",null,"Cantidad por Certificar (M3)"]
[null,null,null,null,null,null,null,null,null,null,"Periodo","Acumulado","Periodo","Acumulado","Periodo","Acumulado","Periodo","Acumulado","Periodo","Acumulado","Periodo","Acumulado","Periodo","Acumulado","Periodo","Acumulado","Periodo","Acumulado"]
[]
[]
[]
[null,"TOTALES",null,null,null,null,null,null,null,null,{"$f":"SUM(K82:K82)","v":0},0,0,0,0,0,0,0,0,0,0,0,0,0,0,0,0,0]
[null,"TOTAL RCD GENERADOS",null,null,null,null,null,null,null,null,{"$f":"+L85+N85+P85+R85+T85+V85+X85+Z85+AB85","v":0}]
[]
[null,"3. SEGUIMIENTO AL APROVECHAMIENTO DE RESIDUOS DE CONSTRUCCIÓN Y DEMOLICIÓN (Consolidado formato  Control de Residuos de Construcción y Demolición)"]
[null,"CORREDOR INTERVENIDO (NOMENCLATURA)",null,null,null,null,"CÓDIGO DE IDENTIFICACIÓN VIAL (CIV)",null,null,"CÓDIGO DEL ELEMENTO","SITIO DE DONDE PROVIENE EL MATERIAL INSTALADO",null,null,null,"ACTIVIDAD CONSTRUCTIVA",null,"VOLÚMEN DE MATERIAL INSTALADO-APROVECHADO",null,null,null,null,null,null,null,"SUMATORIA (PERIÓDO)",null,"VOLÚMEN TOTAL DE MATERIAL INSTALADO A LA FECHA (M3)"]
[null,null,null,null,null,null,null,null,null,null,null,null,null,null,null,null,"PATIO FRESADO (M3)",null,"CENTRO DE APROVECHAMIENTO (M3)",null,"REUTILIZADO MISMO CONTRATO (M3)",null,"REUTILIZADO OTROS CONTRATO (M3)"]
[]
[]
[]
[null,"TOTAL",null,null,null,null,null,null,null,null,null,null,null,null,null,null,{"$f":"SUM(Q91:R93)","v":0},null,{"$f":"SUM(S91:T93)","v":0},null,{"$f":"SUM(U91:V93)","v":0},null,{"$f":"SUM(W91:X93)","v":0},null,{"$f":"SUM(Y91:Z93)","v":0},null,{"$f":"SUM(AA91:AB93)","v":0}]
[]
[null,"VOLÚMEN TOTAL DE MATERIAL A UTILIZAR EN EL PROYECTO (M3):"]
[null,"PORCENTAJE DE CUMPLIMIENTO SEGÚN PLIEGOS (%):"]
[null,"PORCENTAJE DE CUMPLIMIENTO A LA FECHA (%):"]
[]
[null,"4. SEGUIMIENTO A LA APLICACIÓN DE MEZCLA ASFÁLTICA MODIFICADA GRANO DE CAUCHO RECICLADO-GCR (Consolidado formato)"]
[null,"VOLUMEN TOTAL DE ASFALTO INSTALADO  (M3)",null,null,null,"MEZCLA ASFALTICA CON GCR (M3)",null,null,null,"NOMENCLATURA VIAL",null,null,"CÓDIGO DE IDENTIFICACIÓN VIAL - CIV",null,null,null,"CÓDIGO DEL ELEMENTO",null,null,"VOLUMEN CERTIFICADO (M3)",null,null,"VOLUMEN POR CERTIFICAR (M3)",null,"PROVEEDOR"]
[]
[]
[]
[null,{"$f":"SUM(B102:E104)","v":0},null,null,null,{"$f":"SUM(F102:I104)","v":0},null,null,null,null,null,null,null,null,null,null,null,null,null,{"$f":"SUM(T102:V104)","v":0},null,null,{"$f":"SUM(W102:X104)","v":0}]
[]
[null,"VOLÚMEN TOTAL DE MEZCLA ASFÁLTICA A UTILIZAR EN EL PROYECTO (M3):"]
[null,"PORCENTAJE DE CUMPLIMIENTO SEGÚN PLIEGOS (%):"]
[null,"PORCENTAJE DE CUMPLIMIENTO A LA FECHA (%):"]
[]
[null,"F. DERRAMES PRESENTADOS DURANTE EL MES"]
[]
[null,"FECHA DE DERRAME",null,null,null,"HORA",null,null,null,null,null,"CAUSA",null,"TIPO DE RESIDUO",null,null,null,"ACCION REALIZADA"]
[]
[]
[]
[]
["G. MANEJO DE LA VEGETACIÓN Y DEL PAISAJE"]
[]
[null,"1.INFORME DE  MANEJO DE LA VEGETACIÓN "]
[null,"No.","Resolución Aprobatoria",null,null,null,null,"Tala",null,"Traslado",null,"Conservación",null,null,null,"PODA",null,null,null,"Arboles perdidos o muertos",null,"Arboles plantados en Compensación de los perdidos o muertos",null,"Otros Conceptos en Resolución  "]
[null,null,"Número","Fecha",null,null,null,"Aprobado","Realizadas","Aprobado","Realizadas","Aprobado",null,"Realizadas",null,"Aprobado",null,"Realizadas",null,"Cant.","Especie","Cant.","Especie","Servicio Eval y Seguimiento","Recibo de pago Nº","IVP","Recibo de pago Nº","M2 Áreas Verdes"]
[]
[]
[]
[]
[null,"2. INFORME PAISAJISTICO"]
[null,"Estipulados en Diseños",null,null,null,null,null,null,null,null,null,null,null,null,null,"Implementados"]
[null,"Número arboles o m2 de Jardineria",null,null,"Especie",null,null,null,"M2 Áreas Verdes proyectadas",null,null,"Nº y fecha de acta de aprobación por Autoridad Ambiental Competente",null,null,null,"Número arboles o m2 de Jardineria",null,"Especie",null,null,null,"M2 Áreas Verdes sembradas",null,null,"Nº y fecha de acta de recibo por Autoridad Ambiental Competente"]
[]
[]
[]
[]
[null,"3. ZONAS VERDES"]
[null,"TIPO DE ZONA A ENDURECER",null,null,"ZONAS VERDES ANTES DEL PROYECTO (m2)",null,null,null,null,null,null,"ZONAS VERDES A GENERAR CON EL PROYECTO (m2)",null,null,null,null,null,null,null,null,null,"ZONAS VERDES DESPUÉS CON EL PROYECTO (m2)"]
[]
[]
[]
[]
["H. INFORME DEL PROGRAMA DE SEGURIDAD Y SALUD EN EL TRABAJO "]
["IR A FORMATO INFORME MENSUAL REPORTE SST DE AUTOGESTIÓN Y SEGUIMIENTO O EL VIGENTE"]
[null,"I.  SEGUIMIENTO A MONITOREO ARQUEOLOGÍA"]
[]
[null,"TIPO DE PERMISO (Licencia de Intervención Arqueologica)",null,null,null,null,null,null,null,null,"ESTADO",null,null,null,null,null,null,null,"OBLIGACIONES DERIVADAS",null,null,null,null,"OBSERVACIONES"]
[]
[]
[]
[]
[null,"NOVEDADES ARQUEOLOGICAS DEL PROYECTO"]
[null,"Visitas por parte del ICANH "]
[null,"Monitoreos realizados en el periodo"]
[null,"Otros "]
[]
[null,"VERIFICACIÓN CUMPLIMIENTO DE ACTIVIDADES ARQUEOLOGÍA"]
[null,"INFORME DE AVANCE/REPORTE DE HALLAZGOS",null,null,null,null,null,null,null,null,"FECHA",null,null,null,"FICHAS DE ARQUEOLOGÍA",null,null,null,"REGISTRO FOTOGRÁFICO",null,null,null,"FIRMAS ASISTENCIA ARQUEOLOGÍA PÚBLICA"]
[]
[]
[]
[]
[]
["J.  COSTOS AMBIENTALES"]
[]
[null,"GLOBAL AMBIENTAL"]
[null,"ACTA OBRA No.","MONTO GLOBAL AMBIENTAL CONTRATO ",null,null,null,"%  CUMPLIMIENTO AMBIENTAL EXIGIDO",null,"% DESEMPEÑO AMBIENTAL MES",null,"% AVANCE DE OBRA",null,null,"VALOR AMBIENTAL  MENSUAL                 ",null,null,null,"VALOR AMBIENTAL TOTAL PERIODOS ANTERIORES ",null,null,null,null,"VALOR AMBIENTAL  ACUMULADO                              ",null,null,"DESCUENTO AMBIENTAL MENSUAL                                  "]
[]
[]
[]
[]
[null,"PRECIOS UNITARIOS"]
[null,"ACTA DE OBRA No.",null,"%  CUMPLIMIENTO AMBIENTAL EXIGIDO",null,null,"% DESEMPEÑO AMBIENTAL MES",null,null,null,"VALOR PRECIOS UNITARIOS ($)",null,null,"VALOR AMBIENTAL MENSUAL",null,null,null,"VALOR AMBIENTAL TOTAL PERIODOS ANTERIORES ",null,null,null,null,"VALOR AMBIENTAL  ACUMULADO                              ",null,null,"DESCUENTO AMBIENTAL MENSUAL                                  "]
[]
[]
[]
[]
[null,"VALOR AMBIENTAL A  CANCELAR EN EL MES "]
[]
[]
[null,"COSTOS ARQUEOLOGÍA"]
[null,"CONCEPTO",null,null,null,null,null,null,null,null,null,null,null,null,null,null,null,null,null,null,null,null,"VALOR"]
[null,"PERSONAL"]
[null,"ESTUDIOS COMPLEMENTARIOS"]
[null,"HERRAMIENTA Y EQUÍPO "]
[]
[null,"VALOR ARQUEOLOGÍA A CANCELAR EN EL MES ",null,null,null,null,null,null,null,null,null,null,null,null,null,null,null,null,null,null,null,null,{"$f":"SUM(W180:AB182)","v":0}]
[]
[null,"K.  CONTROL DOCUMENTAL"]
[]
[null,"RADICADO",null,null,null,null,"FECHA",null,null,"ASUNTO",null,null,"REMITENTE",null,null,null,"DESTINATARIO",null,null,null,"RESPONSABLE DE LA RESPUESTA",null,null,null,"N° DE COMUNICACIÓN DE RTA",null,"FECHA DE LA RESPUESTA"]
[]
[]
[]
[]
[null,"L.  SEGUIMIENTO A LAS NO CONFORMIDADES Y ACCIONES PREVENTIVAS"]
[]
[null,"1.  VERIFICACIÓN DE ACCIONES CORRECTIVAS Y PREVENTIVAS  DEL PERIODO ANTERIOR"]
[null,"Acción solicitada",null,null,null,null,null,null,null,null,"Fecha",null,null,null,"Plazo",null,null,null,"Cumplió?",null,null,null,"Observaciones"]
[null,null,null,null,null,null,null,null,null,null,null,null,null,null,null,null,null,null,"Si",null,"No"]
[]
[]
[]
[]
[null,"M.  LECCIONES APRENDIDAS"]
[]
[]
[]
[]
["N.  ANEXOS "]
[]
[null,"Nombre del Anexo",null,null,null,null,null,null,null,null,null,null,null,"Aplica",null,null,null,"Anexo Número"]
[null,null,null,null,null,null,null,null,null,null,null,null,null,"SI",null,"NO"]
[]
[]
[]
[]
[]
[]
[]
[null," ",null,null,null,null,null,null,null,null,null,null,null,null,null,null," "]
[null,"Interventor Ambiental",null,null,null,null,null,null,null,null,null,null,null,null,null,null,"Director de Interventoría"]
[]
[null,"Original: Expediente ORFEO No. ______________________"]
[null,"1era copia: interventor"]

{"sheet":"INSTRUCTIVO","index":1,"n_rows":444,"n_cols":38,"rows_kept":444,"cut":false,"hidden":false,"merged":[[75,30,75,33],[81,30,81,33],[86,10,87,13],[88,10,88,13],[75,20,75,21],[75,22,75,23],[75,24,75,25],[105,16,105,27],[76,12,76,15],[79,12,79,13],[79,14,79,15],[79,16,79,17],[79,18,79,19],[79,20,79,21],[79,22,79,23],[88,24,88,25],[88,26,88,27],[90,24,90,25],[90,26,90,27],[90,20,90,21],[99,17,99,18],[101,19,101,20],[101,21,101,22],[90,18,90,19],[141,1,141,9],[30,3,30,21],[30,25,30,27],[32,9,32,12],[32,13,32,16],[35,1,35,8],[35,9,35,12],[32,17,32,27],[33,13,33,16],[33,17,33,27],[30,1,30,2],[32,1,32,2],[33,1,33,8],[33,9,33,12],[35,13,35,16],[35,17,35,27],[34,17,34,27],[34,13,34,16],[34,9,34,12],[34,1,34,8],[120,17,120,18],[36,1,36,8],[36,9,36,12],[36,13,36,16],[4,6,4,21],[5,0,5,5],[5,7,5,13],[5,14,5,23],[6,0,6,5],[6,7,6,13],[6,14,6,23],[7,0,7,1],[7,3,7,5],[7,7,7,13],[7,14,7,23],[8,0,8,1],[8,3,8,5],[8,6,8,13],[8,14,8,23],[11,6,11,7],[11,16,11,20],[11,21,11,23],[11,25,11,27],[14,0,14,28],[15,1,15,27],[16,1,20,27],[21,1,21,27],[22,1,22,2],[22,23,22,24],[22,25,22,27],[23,1,23,5],[23,23,23,27],[22,3,22,22],[24,1,24,2],[24,9,24,12],[24,13,24,16],[24,17,24,27],[25,1,25,8],[25,9,25,12],[25,13,25,16],[25,17,25,27],[26,1,26,8],[26,9,26,12],[26,13,26,16],[26,17,26,27],[27,1,27,8],[27,9,27,12],[27,13,27,16],[27,17,27,27],[28,1,28,8],[28,9,28,12],[28,13,28,16],[28,17,28,27],[30,22,30,24],[36,17,36,27],[38,0,38,28],[40,1,41,9],[40,10,41,17],[40,18,41,22],[40,23,41,27],[42,1,42,9],[42,10,42,17],[42,18,42,22],[42,23,42,27],[43,1,43,9],[43,10,43,17],[43,18,43,22],[43,23,43,27],[44,1,44,9],[44,10,44,17],[44,18,44,22],[44,23,44,27],[46,0,46,28],[48,1,48,27],[49,1,49,8],[50,1,50,9],[50,17,50,21],[50,22,50,27],[51,1,51,9],[51,17,51,21],[51,22,51,27],[52,1,52,27],[53,0,53,28],[55,1,56,6],[55,7,56,7],[55,10,55,21],[55,22,56,27],[56,11,56,19],[56,20,56,21],[55,8,56,9],[54,1,54,27],[59,1,59,27],[58,11,58,19],[58,20,58,21],[58,22,58,27],[57,1,57,27],[58,2,58,6],[58,8,58,9],[61,1,61,27],[62,2,62,6],[60,20,60,21],[60,22,60,27],[60,2,60,6],[60,11,60,19],[60,8,60,9],[62,8,62,9],[63,1,63,27],[64,2,64,6],[62,11,62,19],[62,20,62,21],[62,22,62,27],[83,1,83,9],[83,10,83,27],[75,26,75,27],[76,26,76,27],[77,1,77,27],[64,11,64,19],[64,20,64,21],[64,22,64,27],[78,1,78,27],[74,18,74,19],[74,20,74,21],[73,1,74,5],[73,6,74,11],[73,12,74,15],[65,1,65,27],[66,2,66,6],[66,11,66,19],[66,20,66,21],[66,22,66,27],[66,8,66,9],[70,0,70,28],[67,1,67,6],[67,8,67,9],[67,10,67,27],[72,1,72,27],[73,16,73,19],[73,20,73,23],[73,24,73,27],[74,16,74,17],[76,22,76,23],[76,24,76,25],[74,24,74,25],[74,26,74,27],[74,22,74,23],[75,1,75,5],[75,6,75,11],[75,12,75,15],[75,16,75,17],[75,18,75,19],[76,1,76,5],[76,6,76,11],[76,16,76,17],[76,18,76,19],[76,20,76,21],[81,6,81,9],[79,1,80,5],[79,6,80,9],[79,10,79,11],[89,10,89,13],[86,1,87,5],[82,1,82,9],[86,24,87,25],[86,26,87,27],[87,18,87,19],[87,20,87,21],[87,22,87,23],[79,24,79,25],[79,26,79,27],[84,1,84,27],[85,1,85,27],[81,1,81,5],[88,18,88,19],[88,20,88,21],[86,6,87,8],[86,9,87,9],[86,14,87,15],[86,16,86,23],[88,22,88,23],[88,1,88,5],[88,6,88,8],[88,14,88,15],[90,22,90,23],[88,16,88,17],[218,1,218,9],[218,16,218,23],[92,1,92,15],[92,16,92,27],[93,1,93,15],[93,16,93,27],[94,1,94,15],[94,16,94,27],[141,23,141,27],[142,1,142,9],[217,1,217,9],[217,16,217,23],[96,1,96,27],[97,17,97,18],[97,19,97,20],[97,21,97,22],[142,10,142,17],[142,18,142,22],[142,23,142,27],[216,1,216,9],[216,16,216,23],[97,23,97,24],[97,25,97,27],[98,17,98,18],[98,19,98,20],[141,10,141,17],[143,1,143,9],[105,1,105,15],[99,19,99,20],[99,21,99,22],[99,23,99,24],[99,25,99,27],[98,21,98,22],[98,23,98,24],[98,25,98,27],[100,17,100,18],[100,19,100,20],[100,21,100,22],[100,23,100,24],[100,25,100,27],[101,1,101,2],[101,15,101,16],[101,17,101,18],[109,17,109,27],[110,17,110,27],[111,17,111,27],[112,17,112,27],[101,23,101,24],[101,25,101,27],[103,1,103,15],[103,16,103,27],[104,1,104,15],[104,16,104,27],[101,10,101,13],[107,1,107,27],[109,1,109,4],[109,5,109,10],[109,11,109,12],[109,13,109,16],[111,1,111,4],[111,11,111,12],[111,13,111,16],[110,1,110,4],[118,0,119,0],[118,1,119,1],[119,17,119,18],[119,15,119,16],[112,1,112,4],[118,19,118,20],[118,21,118,22],[118,23,118,27],[98,10,98,13],[118,9,118,10],[118,15,118,18],[110,5,110,10],[110,11,110,12],[110,13,110,16],[111,5,111,10],[100,10,100,13],[119,11,119,12],[118,2,118,6],[118,11,118,14],[119,3,119,6],[118,7,118,8],[119,13,119,14],[112,5,112,10],[112,11,112,12],[122,1,122,27],[123,15,123,27],[124,4,124,7],[124,8,124,10],[124,11,124,14],[124,15,124,16],[124,17,124,20],[124,21,124,23],[120,15,120,16],[124,24,124,27],[120,3,120,6],[120,13,120,14],[125,24,125,27],[126,21,126,23],[126,24,126,27],[127,4,127,7],[127,8,127,10],[127,11,127,14],[127,15,127,16],[127,17,127,20],[127,21,127,23],[127,24,127,27],[126,4,126,7],[125,4,125,7],[125,8,125,10],[125,11,125,14],[125,15,125,16],[125,17,125,20],[125,21,125,23],[126,8,126,10],[126,11,126,14],[126,15,126,16],[126,17,126,20],[128,2,128,3],[128,4,128,7],[128,11,128,14],[128,15,128,16],[128,17,128,20],[128,24,128,27],[129,1,129,27],[130,1,130,3],[130,4,130,10],[130,11,130,20],[130,21,130,27],[131,1,131,3],[131,4,131,10],[131,11,131,20],[131,21,131,27],[132,1,132,3],[132,4,132,10],[132,11,132,20],[132,21,132,27],[133,1,133,3],[133,4,133,10],[133,11,133,20],[133,21,133,27],[134,0,134,8],[135,0,135,28],[137,0,137,28],[139,1,139,27],[151,1,151,27],[152,1,152,9],[152,10,152,13],[152,14,152,17],[152,18,152,21],[152,22,152,27],[141,18,141,22],[146,1,146,27],[149,1,149,9],[149,17,149,21],[149,22,149,27],[147,1,147,17],[148,1,148,27],[143,10,143,17],[143,18,143,22],[143,23,143,27],[144,1,144,9],[144,10,144,17],[144,18,144,22],[144,23,144,27],[153,1,153,9],[153,10,153,13],[153,14,153,17],[153,18,153,21],[153,22,153,27],[154,1,154,9],[154,10,154,13],[154,14,154,17],[154,18,154,21],[161,22,161,24],[161,25,161,27],[155,1,155,9],[155,10,155,13],[155,14,155,17],[155,18,155,21],[155,22,155,27],[158,0,158,28],[162,10,162,12],[162,13,162,16],[162,17,162,21],[162,22,162,24],[160,1,160,27],[161,3,161,5],[161,6,161,9],[161,10,161,12],[161,13,161,16],[161,17,161,21],[162,25,162,27],[163,3,163,5],[163,6,163,9],[163,10,163,12],[163,13,163,16],[163,17,163,21],[163,22,163,24],[163,25,163,27],[162,3,162,5],[162,6,162,9],[164,13,164,16],[164,17,164,21],[164,22,164,24],[164,25,164,27],[166,1,166,27],[167,1,167,2],[167,3,167,5],[167,6,167,9],[167,10,167,12],[167,13,167,16],[167,17,167,21],[167,22,167,24],[167,25,167,27],[168,25,168,27],[101,3,101,9],[99,1,99,9],[100,1,100,9],[125,1,125,3],[126,1,126,3],[127,1,127,3],[169,22,169,24],[169,25,169,27],[120,11,120,12],[123,1,123,14],[124,1,124,3],[168,1,168,2],[168,3,168,5],[168,6,168,9],[168,10,168,12],[168,13,168,16],[168,17,168,21],[169,13,169,16],[169,17,169,21],[168,22,168,24],[164,3,164,5],[164,6,164,9],[164,10,164,12],[169,1,169,2],[169,3,169,5],[169,6,169,9],[169,10,169,12],[186,22,186,25],[186,26,186,27],[178,1,178,21],[178,22,178,27],[179,1,179,27],[180,1,180,21],[180,22,180,27],[181,1,181,27],[176,1,176,21],[176,22,176,27],[174,1,174,27],[175,1,175,21],[175,22,175,27],[184,1,184,27],[186,1,186,5],[186,6,186,8],[186,9,186,13],[186,14,186,17],[186,18,186,21],[187,26,187,27],[170,13,170,16],[171,1,171,21],[171,22,171,27],[173,1,173,27],[188,1,188,5],[188,6,188,8],[188,9,188,13],[188,14,188,17],[188,18,188,21],[188,22,188,25],[188,26,188,27],[187,1,187,5],[187,6,187,8],[187,9,187,13],[187,14,187,17],[187,18,187,21],[187,22,187,25],[189,1,189,5],[189,6,189,8],[189,9,189,13],[189,14,189,17],[189,18,189,21],[189,22,189,25],[189,26,189,27],[191,1,191,27],[193,1,193,27],[194,1,195,9],[194,10,195,13],[194,14,195,17],[194,18,194,21],[194,22,195,27],[195,18,195,19],[195,20,195,21],[196,1,196,9],[196,10,196,13],[196,14,196,17],[196,18,196,19],[196,20,196,21],[196,22,196,27],[197,1,197,9],[197,10,197,13],[197,14,197,17],[197,18,197,19],[197,20,197,21],[197,22,197,27],[198,1,198,9],[198,10,198,13],[198,14,198,17],[198,18,198,19],[198,20,198,21],[198,22,198,27],[211,1,211,12],[211,17,211,27],[209,15,209,16],[209,17,209,27],[200,1,200,27],[201,1,201,27],[202,1,202,27],[203,1,203,27],[204,1,204,27],[205,0,205,26],[205,27,205,28],[207,1,208,12],[87,16,87,17],[99,10,99,13],[211,13,211,14],[211,15,211,16],[177,22,177,27],[212,17,212,27],[213,1,213,12],[213,13,213,14],[213,15,213,16],[213,17,213,27],[207,13,207,16],[207,17,208,27],[210,1,210,12],[210,13,210,14],[210,15,210,16],[208,13,208,14],[208,15,208,16],[209,1,209,12],[209,13,209,14],[177,1,177,21],[212,1,212,12],[212,13,212,14],[212,15,212,16],[210,17,210,27],[113,1,113,27],[115,0,115,26],[115,27,115,28],[117,1,117,27],[112,13,112,16],[0,0,0,24],[0,25,3,28],[1,0,1,24],[2,0,2,3],[2,4,2,21],[2,22,2,24],[3,0,3,3],[3,4,3,21],[3,22,3,24],[64,8,64,9],[98,14,98,16],[99,14,99,16],[100,14,100,16],[98,1,98,9],[97,14,97,16],[97,10,97,13],[97,1,97,9],[90,1,90,15],[90,16,90,17]]}
["FORMATO"]
[{"$f":"+CONTROL!A2","v":"\tINFORME MENSUAL AMBIENTAL Y SST DE INTERVENTORÍA ETAPA CONSTRUCCIÓN Y CONSERVACIÓN"}]
["CÓDIGO",null,null,null,"PROCESO",null,null,null,null,null,null,null,null,null,null,null,null,null,null,null,null,null,"VERSIÓN"]
[{"$f":"+CONTROL!A4","v":"FO-AC-25"},null,null,null,{"$f":"+CONTROL!C4","v":"PRACTICAS INTEGRALES DE GESTIÒN"},null,null,null,null,null,null,null,null,null,null,null,null,null,null,null,null,null,{"$f":"+CONTROL!H4","v":5}]
[null,null,"CICLO DE VIDA DE PROYECTO",null,null,null,"CONSTRUCCIÓN Y CONSERVACION"]
[null,null,null,null,null,null,null,"SUBDIRECCIÓN GENERAL",null,null,null,null,null,null,"ESCRIBIR NOMBRE SUBDIRECCION "]
["Fecha",null,null,null,null,null,null,"DIRECCIÓN TÉCNICA",null,null,null,null,null,null,"ESCRIBIR NOMBRE DE DIRECCIÓN "]
["DD",null,"MM","AÑO",null,null,null,"SUBDIRECCIÓN TÉCNICA",null,null,null,null,null,null,"ESCRIBIR NOMBRE DE SUBDIRECCIÓN"]
[]
[]
[]
[null,null,null,"Informe N°",null,null,"Relacione el número del informe",null,null,null,null,null,null,null,null,null,"Correspondiente al periodo entre",null,null,null,null,"Escriba fecha desde",null,null,"y","Escriba fecha hasta"]
[]
[null,null,null,null,null,null,null,null," "]
["A. DATOS GENERALES DEL CONTRATO"]
[null,"OBJETO DEL CONTRATO DE OBRA"]
[null,"ESCRIBA EL OBJETO CONTRACTUAL"]
[]
[]
[]
[]
[]
[null,"CONTRATISTA",null,"ESCRIBA LA RAZON SOCIAL DE LA EMPRESA CONTRATISTA",null,null,null,null,null,null,null,null,null,null,null,null,null,null,null,null,null,null,null,"Cto. Obra No.",null,"ESCRIBA EL NOMBRE DEL CONTRATO DE OBRA "]
[]
[null,null,null,null,null,null,null,null,null,"Fecha de Inicio",null,null,null,"Fecha de Terminación",null,null,null,"Observaciones, Otros Sí, Suspensiones, etc."]
[null,"Contrato",null,null,null,null,null,null,null," Escriba aquí la fecha de inicio legal del contrato   ESCRIBA LA FECHA DE SUSCRIPCIÓN DEL ACTA DE INICIO DEL CONTRATO",null,null,null,"Escriba aquí la fecha de terminación Contractual  del contrato",null,null,null,"Escriba cualquier observación presentada al contrato, ya sea Otrosí, suspensiones entre otros."]
[null,"Pre Construcción / Etapa Preliminar",null,null,null,null,null,null,null,"Escriba la fecha de inicio de la preconstruccion o etapa preliminar a la obra ESCRIBA LA FECHA DE SUSCRIPCIÓN DEL ACTA DE INICIO DEL CONTRATO",null,null,null,"Escriba la fecha de terminación de la preconstruccion o etapa preliminar a la obra",null,null,null,"Escriba cualquier observación presentada a la etapa de preconstruccion o etapa preliminar, ya sea Otrosí, suspensiones entre otros."]
[null,"Construcción ",null,null,null,null,null,null,null,"Escriba la fecha de inicio de la fase de mantenimiento. ESCRIBA LA FECHA DE SUSCRIPCIÓN DEL ACTA DE INICIO DEL CONTRATO O DE LA FASE",null,null,null,"Escriba aquí la fecha de terminación Contractual  del contrato",null,null,null,"Escriba cualquier observación presentada a la etapa de construcción , ya sea Otrosí, suspensiones entre otros."]
[null,"Conservación",null,null,null,null,null,null,null,"Escriba la fecha de inicio de la fase de mantenimiento. ESCRIBA LA FECHA DE SUSCRIPCIÓN DEL ACTA DE INICIO DEL CONTRATO O DE LA FASE",null,null,null,"Escriba aquí la fecha de terminación Contractual  del contrato",null,null,null,"Escriba cualquier observación presentada al contrato, ya sea Otrosí, suspensiones entre otros."]
[]
[null,"INTERVENTOR",null,"ESCRIBA LA RAZON SOCIAL DE LA EMPRESA INTERVENTORA",null,null,null,null,null,null,null,null,null,null,null,null,null,null,null,null,null,null,"Cto. Interventoría No.",null,null,"ESCRIBA EL NOMBRE DEL CONTRATO DE INTERVENTORIA"]
[]
[null,null,null,null,null,null,null,null,null,"Fecha de Inicio",null,null,null,"Fecha de Terminación",null,null,null,"Observaciones, Otros Sí, Suspensiones, etc.",null,null,null,null,null,null,null,null,null,null,null,null,null,null,null,null,null,null,null,1734000]
[null,"Contrato",null,null,null,null,null,null,null," Escriba aquí la fecha de inicio legal del contrato   ESCRIBA LA FECHA DE SUSCRIPCIÓN DEL ACTA DE INICIO DEL CONTRATO",null,null,null,"Escriba aquí la fecha de terminación Contractual  del contrato",null,null,null,"Escriba cualquier observación presentada al contrato, ya sea Otrosí, suspensiones entre otros.",null,null,null,null,null,null,null,null,null,null,null,null,null,null,null,null,null,null,null,714000]
[null,"Pre Construcción / Etapa Preliminar",null,null,null,null,null,null,null,"Escriba la fecha de inicio de la preconstruccion o etapa preliminar a la obra ESCRIBA LA FECHA DE SUSCRIPCIÓN DEL ACTA DE INICIO DEL CONTRATO",null,null,null,"Escriba la fecha de terminación de la preconstruccion o etapa preliminar a la obra",null,null,null,"Escriba cualquier observación presentada a la etapa de preconstruccion o etapa preliminar, ya sea Otrosí, suspensiones entre otros."]
[null,"Construcción ",null,null,null,null,null,null,null,"Escriba la fecha de inicio de la fase de mantenimiento. ESCRIBA LA FECHA DE SUSCRIPCIÓN DEL ACTA DE INICIO DEL CONTRATO O DE LA FASE",null,null,null,"Escriba aquí la fecha de terminación Contractual  del contrato",null,null,null,"Escriba cualquier observación presentada a la etapa de construcción , ya sea Otrosí, suspensiones entre otros.",null,null,null,null,null,null,null,null,null,null,null,null,null,null,null,null,null,null,null,{"$f":"SUM(AL33:AL35)","v":2448000}]
[null,"Conservación",null,null,null,null,null,null,null,"Escriba la fecha de inicio de la fase de mantenimiento. ESCRIBA LA FECHA DE SUSCRIPCIÓN DEL ACTA DE INICIO DEL CONTRATO O DE LA FASE",null,null,null,"Escriba aquí la fecha de terminación Contractual  del contrato",null,null,null,"Escriba cualquier observación presentada al contrato, ya sea Otrosí, suspensiones entre otros."]
[]
["B.  PERMISOS AMBIENTALES DEL PROYECTO"]
[]
[null,"PERMISO",null,null,null,null,null,null,null,null,"ESTADO",null,null,null,null,null,null,null,"OBLIGACIONES DERIVADAS",null,null,null,null,"OBSERVACIONES"]
[]
[null,"Relacionar los permisos Ambientales que se requieran para el proyecto con el número de la resolución SDA que le corresponde.\nSe debe incluir la información desde el momento en que se genera la necesidad de la solicitud o actualización del permiso hasta el cierre del mismo.",null,null,null,null,null,null,null,null,"Informar el estado en que se encuentra el permiso",null,null,null,null,null,null,null,"Una vez emitido el permiso, relaciones las obligaciones establecidas en el mismo",null,null,null,null,"Incluir las observaciones relacionadas con el permiso"]
[]
[]
[]
["C. NOVEDADES AMBIENTALES DEL PROYECTO "]
[]
[null,"Diligencie las novedades relacionadas con el componente ambiental tales como:"]
[null,"Seguimientos por parte de la Autoridad Ambiental"]
[null,"Monitoreos realizados en el mes"]
[null,"Otros (Indicar Cuales)"]
[]
["D. EVALUACIÓN DEL SISTEMA DE GESTION AMBIENTAL"]
[null,"SE SUGIERE COLOCAR EL NOMBRE DE CADA UNO DE LOS PROGRAMAS, TENIENDO EN CUENTA QUE LAS LISTAS DE CHEQUEO NO MANEJAN SUBPROGRAMAS"]
[null,"COMPONENTE AMBIENTAL",null,null,null,null,null,"%  import. ambiental","% desempeño mes",null,"DESCRIPCIÓN DEL INCUMPLIMIENTO",null,null,null,null,null,null,null,null,null,null,null,"Medidas Correctivas"]
[null,null,null,null,null,null,null,null,null,null,"ÍTEM INCUMPLIDO","DESCRIPCIÓN GENERAL",null,null,null,null,null,null,null,null,"% CALIFICACIÓN ÍTEM"]
[]
[null," A ","CUMPLIMIENTO A OBLIGACIONES AMBIENTALES Y SST CONTRACTUALES",null,null,null,null,"Porcentaje establecido en los pliegos de condiciones para el componente.","Porcentaje de desempeño del componente obteniedo en el periodo del informe",null,"Relacione el número del item de las listas de chequeo incumplido","Realice una breve descripción del incumplimiento (Ej: Permanencia del residente ambiental)",null,null,null,null,null,null,null,null,"Indique la calificación obtenida en las listas de chequeo para el correspondiente Ítem (Ej: 50%)",null,"Mencione las acciones a tomar inmediatamente para corregir los incumplimientos presentados"]
[]
[null,"B","MANEJO AMBIENTAL EN LA EJECUCION DE ACTIVIDADES CONSTRUCTIVAS",null,null,null,null,"Porcentaje establecido en los pliegos de condiciones para el componente.","Porcentaje de desempeño del componente obteniedo en el periodo del informe",null,"Relacione el número del item de las listas de chequeo incumplido","Realice una breve descripción del incumplimiento (Ej: Permanencia del residente ambiental)",null,null,null,null,null,null,null,null,"Indique la calificación obtenida en las listas de chequeo para el correspondiente Ítem (Ej: 50%)",null,"Mencione las acciones a tomar inmediatamente para corregir los incumplimientos presentados"]
[]
[null,"C","MANEJO DE LA VEGETACIÓN Y PAISAJISMO",null,null,null,null,"Porcentaje establecido en los pliegos de condiciones para el componente.","Porcentaje de desempeño del componente obteniedo en el periodo del informe",null,"Relacione el número del item de las listas de chequeo incumplido","Realice una breve descripción del incumplimiento (Ej: Permanencia del residente ambiental)",null,null,null,null,null,null,null,null,"Indique la calificación obtenida en las listas de chequeo para el correspondiente Ítem (Ej: 50%)",null,"Mencione las acciones a tomar inmediatamente para corregir los incumplimientos presentados"]
[]
[null,"D","GESTION EN SEGURIDAD Y SALUD EN EL TRABAJO",null,null,null,null,"Porcentaje establecido en los pliegos de condiciones para el componente.","Porcentaje de desempeño del componente obteniedo en el periodo del informe",null,"Relacione el número del item de las listas de chequeo incumplido","Realice una breve descripción del incumplimiento (Ej: Permanencia del residente ambiental)",null,null,null,null,null,null,null,null,"Indique la calificación obtenida en las listas de chequeo para el correspondiente Ítem (Ej: 50%)",null,"Mencione las acciones a tomar inmediatamente para corregir los incumplimientos presentados"]
[]
[null,"E","PROGRAMA DE SEÑALIZACION DE SEGURIDAD",null,null,null,null,"Porcentaje establecido en los pliegos de condiciones para el componente.","Porcentaje de desempeño del componente obteniedo en el periodo del informe",null,"Relacione el número del item de las listas de chequeo incumplido","Realice una breve descripción del incumplimiento (Ej: Permanencia del residente ambiental)",null,null,null,null,null,null,null,null,"Indique la calificación obtenida en las listas de chequeo para el correspondiente Ítem (Ej: 50%)",null,"Mencione las acciones a tomar inmediatamente para corregir los incumplimientos presentados"]
[null,"TOTAL",null,null,null,null,null,{"$f":"+H58+H60+H62+H64+H66","v":0},{"$f":"+I58+I60+I62+I64+I66","v":0}]
[]
[]
["E. MANEJO DE MATERIALES Y RESIDUOS DE CONSTRUCCIÓN Y DEMOLICION"]
[]
[null,"1. CONTROL DE MANEJO DE MATERIALES  (Consolidado formato Control de materiales pétreos)"]
[null,"Tipo de material recibido",null,null,null,null,"Razón social  del Proveedor",null,null,null,null,null,"Aprobación Autoridad Ambiental y/o No. Registro Directorio Proveedores IDU",null,null,null,"Cantidad Total Recibido (m3)",null,null,null,"Cantidad Certificada (m3)",null,null,null,"Cantidad por Certificar (m3)"]
[null,null,null,null,null,null,null,null,null,null,null,null,null,null,null,null,"Periodo",null,"Acumulado",null,"Periodo",null,"Acumulado",null,"Periodo",null,"Acumulado"]
[null,"Concreto, Prefabricados, Asfaltos, Materiales Granulares, Maderas.",null,null,null,null,"Indique aquí el nombre del proveedor o empresa que suministró el material (En caso de materiales suministrados por otros contratos indicar el número del Contrato)",null,null,null,null,null,"Indique el número del acto administrativo con el cual la autoridad ambiental competente otorgado el permiso requerido al proveedor para el desarrollo de la actividad (Ej: Resolución CAR nO. 2 58 del 11/08/04) o el No. De Registro del Directorio de Proveedores IDU.",null,null,null,"Escriba el total de materiales utilizados en el periodo",null,"Escriba el total de materiales utilizados a la fecha  a partir del inicio de la construcción o de la obra.",null,"Escriba el total de materiales certificados en el periodo",null,"Escriba el acumulado de los materiales certificados desde el inicio del contrato a la fecha   \n",null,"Escriba el total de materiales utilizados por certificar en el periodo\n",null,"Escriba el total de materiales utilizados por certificar a la fecha   \na partir del inicio de la construcción o de la obra.\n"]
[]
[]
[null,"2. SEGUIMIENTO AL MANEJO DE RESIDUOS DE CONSTRUCCIÓN Y DEMOLICIÓN (Consolidado formato  Control de Residuos de Construcción y Demolición generado)"]
[null,"Sitio de Disposición ",null,null,null,null,"Aprobación Autoridad Ambiental y/o No. Registro Directorio Proveedores IDU",null,null,null,"Material Orgánico (Pedones y Cespedones) m3",null,"Material de Excavación m3",null,"Demolición Concreto m3",null,"Demolición Asfalto m3",null,"Demolición Edificaciones m3",null,"Volúmen Total Generado m3",null,"Volúmen Reutilizado m3",null,"Cantidad Certificada m3",null,"Cantidad por Certificar m3"]
[null,null,null,null,null,null,null,null,null,null,"Periodo","Acumulado","Periodo","Acumulado","Periodo","Acumulado","Periodo","Acumulado","Periodo","Acumulado","Periodo","Acumulado","Periodo","Acumulado","Periodo","Acumulado","Periodo","Acumulado"]
[null,"Razón social del sitio de disposición final, razón social del centro de aprovechamiento, mismo contrato(Reutilizado in situ ), número del contrato (reutilizado en otras obras ) y patio fresado.\n",null,null,null,null,"Indique aquí el acto administrativo por medio del cual la Autoridad Ambiental Competente otorgó el permiso requerido para la recepción de escombros (Ej: Resolución SDA 991 DEL 21/08/08)",null,null,null,"Escriba el total de material orgánico generado en el periodo","Escriba el total de material orgánico generado desde el inicio de la etapa de ejecución de la obra a la fecha.","Escriba el total de material de excavación  generado en el periodo ","Escriba el total de material de excavación generado desde el inicio de la etapa de ejecución de la obra a la fecha.","Escriba el total de material de demolición de concreto generado en el periodo","Escriba el total de material de demolición de concreto generado desde el inicio de la etapa de ejecución de la obra a la fecha.","Escriba el total de material de demolición de asfalto generado en el periodo","Escriba el total de material de demolición de asfalto generado desde el inicio de la etapa de ejecución de la obra a la fecha.","Escriba el total de material de demolición de edificaciones generado en el periodo","Escriba el total de material de demolición de edificaciones generado desde el inicio de la etapa de ejecución de la obra a la fecha.","Escriba el volumen total de RCD generados en la obra durante el periodo del informe","Escriba el volumen  total acumulado de los RCD, generados en la obra","Escriba el volumen total reutilizado en el periodo de los RCD generados en la obra","Escriba el volumen  total acumulado de los RCD reutilizados en la obra","Escriba el volumen de RCD  certificados para el periodo","Escriba el volumen  acumulado de RCD  certificados","Escriba el volumen de RCD por certificar para el periodo","Escriba el volumen  acumulado de RCD  por certificar"]
[null,"TOTALES",null,null,null,null,null,null,null,null,{"$f":"SUM(K82:K82)","v":0},0,0,0,0,0,0,0,0,0,0,0,0,0,0,0,0,0]
[null,"TOTAL RCD GENERADOS",null,null,null,null,null,null,null,null,{"$f":"+L83+N83+P83+R83+T83+V83+X83+Z83+AB83","v":0}]
[]
[null,"3. SEGUIMIENTO AL APROVECHAMIENTO DE RESIDUOS DE CONSTRUCCIÓN Y DEMOLICIÓN (Consolidado formato  Control de Residuos de Construcción y Demolición)"]
[null,"CORREDOR INTERVENIDO (NOMENCLATURA)",null,null,null,null,"CÓDIGO DE IDENTIFICACIÓN VIAL (CIV)",null,null,"CÓDIGO DEL ELEMENTO","SITIO DE DONDE PROVIENE EL MATERIAL INSTALADO",null,null,null,"ACTIVIDAD CONSTRUCTIVA",null,"VOLÚMEN DE MATERIAL INSTALADO-APROVECHADO",null,null,null,null,null,null,null,"SUMATORIA (PERIÓDO)",null,"VOLÚMEN TOTAL DE MATERIAL INSTALADO A LA FECHA (M3)"]
[null,null,null,null,null,null,null,null,null,null,null,null,null,null,null,null,"PATIO FRESADO (M3)",null,"CENTRO DE APROVECHAMIENTO (M3)",null,"REUTILIZADO MISMO CONTRATO (M3)",null,"REUTILIZADO OTROS CONTRATO (M3)"]
[null,"DIRECCIÓN DEL FRENTE DE OBRA INTERVENIDO",null,null,null,null,"RELACIONE AQUÍ EL CÓDIGO DE INDENTIFCACIÓN VIAL DEL TRAMO INTERVENIDO",null,null,"RELACIONE AQUÍ EL CÓDIGO DEL ELEMENTO DEL TRAMO INTERVENIDO","ESCRIBA:\n- \"PATIO DE FRESADO\" SI EL MATERIAL PROVIENE DEL PATIO FRESADO IDU\n- LA RAZON SOCIAL DEL CENTRO DE APROVECHAMIENTOS DEL CUAL PROVIENE EL MATERIAL (AUTORIZADOS POR LA SDA)\n- EL NUMERO DEL CONTRATO DEL CUAL PROVIENE EL MATERIAL (YA SEA DEL MISMO CONTRATO O DE OTROS CONTRATOS IDU)",null,null,null,"ESCRIBA AQUÍ LA ACTIVIDAD CONSTRUCTIVA DE DONDE PROVIENE EL RCD.",null,"RELACIONE AQUÍ  EL VOLUMEN DE FRESADO PROVENIENTE DEL PATIO DE FRESADO IDU.",null,"RELACIONE AQUÍ  EL VOLUMEN DE RCD PROVENIENTE DE UN CENTRO DE APROVECHAMIENTO",null,"RELACIONE AQUÍ  EL VOLUMEN DE RCD REUTILIZADO DEL MISMO CONTRATO",null,"RELACIONE AQUÍ  EL VOLUMEN DE RCD REUTILIZADO DE OTROS CONTRATOS IDU.",null,"TOTAL DE RCD REUTILIZADO EN EL PERIODO DEL INFORME",null,"TOTAL DEL MATERIAL  INSTALADO EN EL PERIODO, TANTO NUEVO COMO APROVECHADO. (Para el material granular, el cálculo del volumen debe ser suelto, no compacto) "]
[]
[null,"TOTAL",null,null,null,null,null,null,null,null,null,null,null,null,null,null,{"$f":"SUM(Q89:R90)","v":0},null,{"$f":"SUM(S89:T90)","v":0},null,{"$f":"SUM(U89:V90)","v":0},null,{"$f":"SUM(W89:X90)","v":0},null,{"$f":"SUM(Y89:Z90)","v":0},null,{"$f":"SUM(AA89:AB90)","v":0}]
[]
[null,"VOLÚMEN TOTAL DE MATERIAL A UTILIZAR EN EL PROYECTO (M3):",null,null,null,null,null,null,null,null,null,null,null,null,null,null,"Escriba aquí el volumen total de material  proyectado a utilizar en la obra."]
[null,"PORCENTAJE DE CUMPLIMIENTO SEGÚN PLIEGOS (%):",null,null,null,null,null,null,null,null,null,null,null,null,null,null,"Escriba aquí el porcentaje  de cumplimiento de reutilización y /o aprovechamiento de RCD definido contractualmente."]
[null,"PORCENTAJE DE CUMPLIMIENTO A LA FECHA (%):",null,null,null,null,null,null,null,null,null,null,null,null,null,null,"Escriba aquí el porcentaje de cumplimiento de reutilización y/ o aprovechamiento de RCD LOGRADO a la fecha del reporte."]
[]
[null,"4. SEGUIMIENTO A LA APLICACIÓN DE MEZCLA ASFÁLTICA MODIFICADA GRANO DE CAUCHO RECICLADO-GCR (Consolidado formato)"]
[null,"VOLUMEN TOTAL DE ASFALTO INSTALADO  (m3)",null,null,null,null,null,null,null,null,"MEZCLA ASFALTICA CON GCR (m3)",null,null,null,"NOMENCLATURA VIAL",null,null,"CÓDIGO DE IDENTIFICACIÓN VIAL - CIV",null,"CÓDIGO DEL ELEMENTO",null,"VOLUMEN CERTIFICADO",null,"VOLUMEN POR CERTIFICAR",null,"PROVEEDOR"]
[null,"Relacione aquí en m3 el volumen total de Asfalto instalado en el Contrato(Troncales de tráfico mixto, Malla Vial Arterial No Troncal, Malla Vial Intermedia y Malla Vial Local)",null,null,null,null,null,null,null,null,"RELACIONE AQUÍ EL VOLUMEN (M3)DE MEZCLA ASFÁLTICA MODIFICADA CON GCR, UTILIZADA EN EL PERIODO REPORTADO.",null,null,null,"DIRECCIÓN DEL FRENTE DE OBRA INTERVENIDO",null,null,"RELACIONE AQUÍ EL CÓDIGO DE INDENTIFCACIÓN VIAL DEL TRAMO INTERVENIDO",null,"RELACIONE AQUÍ EL CÓDIGO DEL ELEMENTO DEL TRAMO INTERVENIDO",null,"RELACIONE EL VOLUMEN CERTIFICADO POR EL PROVEEDOR, PARA EL PERIODO DEL INFORME.",null,"RELACIONE EL VOLUMEN POR CERTIFICAR POR EL PROVEEDOR, PARA EL PERIODO DEL INFORME.",null,"ESCRIBA AQUÍ EL NOMBRE DEL PROVEEDOR DE LA MEZCLA ASFALTICA CON GCR."]
[]
[]
[null,"TOTALES",null,{"$f":"+SUM(D99:H101)","v":0},null,null,null,null,null,null,{"$f":"+SUM(L99:M101)","v":0},null,null,null,null,null,null,null,null,null,null,{"$f":"+SUM(V99:W101)","v":0},null,{"$f":"+SUM(X99:Y101)","v":0}]
[]
[null,"VOLÚMEN TOTAL DE MEZCLA ASFÁLTICA A UTILIZAR EN EL PROYECTO (M3):",null,null,null,null,null,null,null,null,null,null,null,null,null,null,"Escriba aquí el volumen total de mezcla asfáltica proyectado a utilizar en la obra.  (Troncales de tráfico mixto, Malla Vial Arterial No Troncal, Malla Vial Intermedia y Malla Vial Local)"]
[null,"PORCENTAJE DE CUMPLIMIENTO SEGÚN PLIEGOS (%):",null,null,null,null,null,null,null,null,null,null,null,null,null,null,"Escriba aquí el porcentaje de cumplimiento de utilización de mezcla asfáltica modificada con GCR, establecida contractualmente."]
[null,"PORCENTAJE DE CUMPLIMIENTO A LA FECHA (%):",null,null,null,null,null,null,null,null,null,null,null,null,null,null,"Escriba aquí el porcentaje de cumplimiento de utilización de mezcla asfáltica modificada con GCR A LA FECHA DE LA PRESENTACIÓN DEL PRESENTE FORMATO QUE ES IGUAL A (MEZCLA ASFALTICA CON GCR (m3) / VOLUMEN TOTAL DE ASFALTO A INSTALADO  (m3) ) *100"]
[]
[null,"F. DERRAMES PRESENTADOS DURANTE EL MES"]
[]
[null,"FECHA DE DERRAME",null,null,null,"HORA",null,null,null,null,null,"CAUSA",null,"TIPO DE RESIDUO",null,null,null,"ACCION REALIZADA"]
[null,"Indique la semana de verificación ",null,null,null,"Indique la hora del derrame",null,null,null,null,null,"Indique la causa del derrame",null,"Indique el tipo de residuo que se derramo",null,null,null,"Indique la acción realizada para controlar el derrame"]
[]
[]
[]
[]
["G. MANEJO DE LA VEGETACIÓN Y DEL PAISAJE"]
[]
[null,"1.INFORME DE  MANEJO DE LA VEGETACIÓN "]
[null,"No.","Resolución Aprobatoria",null,null,null,null,"Tala",null,"Traslado",null,"Conservación",null,null,null,"PODA",null,null,null,"Arboles perdidos o muertos",null,"Arboles plantados en Compensación de los perdidos o muertos",null,"Otros Conceptos en Resolución  "]
[null,null,"Número","Fecha",null,null,null,"Aprobado","Realizadas","Aprobado","Realizadas","Aprobado",null,"Realizadas",null,"Aprobado",null,"Realizadas",null,"Cant.","Especie","Cant.","Especie"," Servicio Eval y Seguimiento","Recibo de pago Nº","IVP","Recibo de pago Nº","M2 Áreas Verdes"]
[null,null,"Indique aquí el número del acto administrativo por medio del cual la Autoridad Ambiental Competente otorgó el permiso requerido ","Indique aquí la fecha del acto administrativo por medio del cual la Autoridad Ambiental Competente otorgó el permiso requerido ",null,null,null,"Indique aquí el número de talas aprobadas en el acto administrativo de la Autoridad Ambiental Competente","Indique aquí el número de talas realizadas de las  aprobadas en el acto administrativo de la Autoridad Ambiental Competente","Indique aquí el número de traslados aprobados en el acto administrativo de la Autoridad Ambiental Competente","Indique aquí el número de traslados realizadas de las  aprobadas en el acto administrativo de la Autoridad Ambiental Competente","indique aquí el número de arboles destinados para conservación",null,"indique aquí el número de arboles conservados",null,"indique aquí el numero de arboles destinados para poda",null,"Indique el número de árboles podados",null,"Indique aquí el numero de arboles que se perdieron o murieron durante el periodo","indique aquí a especie de los arboles que murieron o se perdieron durante el periodo","Indique aquí el número de árboles plantados de compensación por árboles afectados en el desarrollo de la obra.","Indique el nombre de las especies plantadas como compensación","Indique aquí el valor del Servicio de Evaluación y Seguimiento establecido por la Autoridad Ambiental Competente","Indique aquí el numero y fecha del recibo con el se cancelo la obligación","Indique aquí el valor del IVP establecido por la Autoridad Ambiental Competente","Indique aquí el numero y fecha del recibo con el se cancelo la obligación","Indique la cantidad de zonas verdes a compensar"]
[]
[null,"2. INFORME PAISAJISTICO"]
[null,"Estipulados en Diseños",null,null,null,null,null,null,null,null,null,null,null,null,null,"Implementados"]
[null,"Número arboles o m2 de Jardineria",null,null,"Especie",null,null,null,"M2 Áreas Verdes proyectadas",null,null,"Nº y fecha de acta de aprobación por Autoridad Ambiental Competente",null,null,null,"Número arboles o m2 de Jardineria",null,"Especie",null,null,null,"M2 Áreas Verdes sembradas",null,null,"Nº y fecha de acta de recibo por Autoridad Ambiental Competente"]
[null,"Indique el número de arboles y el número de m2 de jardineria instalada aprobada en el diseño paisajístico",null,null,"Relacione la especie aprobadas en el diseño paisajístico",null,null,null,"Indique los metros cuadrados de área verde proyectados aprobados en el diseño paisajístico",null,null,"Indique Nº y fecha de acta de aprobación del diseño por parte de la entidad competente",null,null,null,"Indique el número de arboles plantados y el número de m2 de jardineria instalada en ejecución del contrato por implementación del diseño paisajístico",null,"Relacione la especie plantados en ejecución del contrato por implementación del diseño paisajístico",null,null,null,"Indique los metros cuadrados de área verde implementados y recuperados en ejecución del contrato",null,null,"Indique Nº y fecha de acta de aprobación del diseño por parte de la entidad competente"]
[]
[]
[]
[null,"3. ZONAS VERDES"]
[null,"TIPO DE ZONA A ENDURECER",null,null,"ZONAS VERDES ANTES DEL PROYECTO (m2)",null,null,null,null,null,null,"ZONAS VERDES A GENERAR CON EL PROYECTO (m2)",null,null,null,null,null,null,null,null,null,"ZONAS VERDES DESPUÉS CON EL PROYECTO (m2)"]
[null,"Relacione la zona a endurecer conforme a la normativa vigente",null,null,"Escriba los metros cuadrados de área verde (antes del proyecto) ",null,null,null,null,null,null,"Escriba los metros cuadrados de área verde a generar con el proyecto",null,null,null,null,null,null,null,null,null,"Relacione los metros cuadrados de zona verde después del proyecto (este balance se calcula conforme a la normativa vigente)"]
[]
[]
[]
["H. INFORME DEL PROGRAMA DE SEGURIDAD Y SALUD EN EL TRABAJO "]
[]
["IR A FORMATO INFORME MENSUAL REPORTE SST DE AUTOGESTIÓN Y SEGUIMIENTO O EL VIGENTE"]
[]
[null,"I.  SEGUIMIENTO A MONITOREO ARQUEOLOGÍA"]
[]
[null,"TIPO DE PERMISO (Licencia de Intervención Arqueologica)",null,null,null,null,null,null,null,null,"ESTADO",null,null,null,null,null,null,null,"OBLIGACIONES DERIVADAS",null,null,null,null,"OBSERVACIONES"]
[null,"Diligencie el tipo de intervención arqueologica (monitoreo con rescate, monitoreo y acompañamiento a obra), junto al número de licencia y la fecha",null,null,null,null,null,null,null,null,"diligencie el estado de la licencia",null,null,null,null,null,null,null,"Relacionar todas las obligaciones propuestas y las que el ICANH sugiera o determine",null,null,null,null,"Escribir todos los adendos y el objeto del adendo que se puedean presentar durante la duración de la licencia."]
[]
[]
[]
[null,"NOVEDADES ARQUEOLOGICAS DEL PROYECTO"]
[null,"Visitas por parte del ICANH (Escribir Objeto de la visita y el resultado de la misma)"]
[null,"Monitoreos realizados en el periodo (Escribir área monitoreada y parámetros de monitoreo, asociado a la ejecución de la obra)"]
[null,"Otros "]
[]
[null,"VERIFICACIÓN CUMPLIMIENTO DE ACTIVIDADES ARQUEOLOGÍA"]
[null,"INFORME DE AVANCE/REPORTE DE HALLAZGOS",null,null,null,null,null,null,null,null,"FECHA",null,null,null,"FICHAS DE ARQUEOLOGÍA",null,null,null,"REGISTRO FOTOGRÁFICO",null,null,null,"FIRMAS ASISTENCIA ARQUEOLOGÍA PÚBLICA"]
[null,"Indique las acciones realizadas durante el periodo reportado",null,null,null,null,null,null,null,null,"Indique la fecha a la cual corresponde las acciones realizadas",null,null,null,"Indique numeral de la ficha diligenciada",null,null,null,"Indique el archivo anexo fotográfico",null,null,null,"Relacione el soporte documental con las firmas de las charlas de arqueología pública"]
[]
[]
[]
[]
["J.  COSTOS AMBIENTALES"]
[]
[null,"GLOBAL AMBIENTAL"]
[null,"ACTA DE OBRA No.","MONTO GLOBAL AMBIENTAL CONTRATO ","%  CUMPLIMIENTO AMBIENTAL EXIGIDO",null,null,"% DESEMPEÑO AMBIENTAL MES",null,null,null,"% AVANCE DE OBRA",null,null,"VALOR AMBIENTAL  MENSUAL                 ",null,null,null,"VALOR AMBIENTAL TOTAL PERIODOS ANTERIORES ",null,null,null,null,"VALOR AMBIENTAL  ACUMULADO                              ",null,null,"DESCUENTO AMBIENTAL MENSUAL                                  "]
[null,"Indique el número del acta de pago correspondiente al periodo del informe","Indique el valor global ambiental establecido para el contrato","Indique el porcentaje mínimo de cumplimiento ambiental exigido en el contrato",null,null,"Indique el porcentaje de desempeño ambiental obtenido en el periodo del presente informe",null,null,null,"Indique el porcentaje de avance de obra en el mes",null,null,"Indique el resultado de multiplicar el Global ambiental por el % de desempeño y por el % de avance de obra",null,null,null,"Indique el valor ambiental acumulado cancelado de los meses anteriores",null,null,null,null,"Indique el valor ambiental acumulado cancelado a la fecha",null,null,"Indique el valor de la diferencia del porcentaje cancelado"]
[]
[]
[]
[null,"PRECIOS UNITARIOS"]
[null,"ACTA DE OBRA No.",null,"%  CUMPLIMIENTO AMBIENTAL EXIGIDO",null,null,"% DESEMPEÑO AMBIENTAL MES",null,null,null,"VALOR PRECIOS UNITARIOS ($)",null,null,"VALOR AMBIENTAL MENSUAL",null,null,null,"VALOR AMBIENTAL TOTAL PERIODOS ANTERIORES ",null,null,null,null,"VALOR AMBIENTAL  ACUMULADO                              ",null,null,"DESCUENTO AMBIENTAL MENSUAL                                  "]
[null,"Indique el número del acta de pago correspondiente al periodo del informe",null,"Indique el porcentaje mínimo de cumplimiento ambiental exigido en el contrato",null,null,"Indique el porcentaje de desempeño ambiental obtenido en el periodo del presente informe",null,null,null,"Escriba el valor de la sumatoria de los APUs que apliquen en el periodo ",null,null,"Indique el resultado de multiplicar la sumatoria de los APUs que apliquen en el periodo por el % de desempeño",null,null,null,"Indique el valor ambiental acumulado cancelado de los meses anteriores",null,null,null,null,"Indique el valor ambiental acumulado cancelado de los meses anteriores",null,null,"Indique el valor del descuento ambiental"]
[]
[]
[null,"VALOR AMBIENTAL A  CANCELAR EN EL MES ",null,null,null,null,null,null,null,null,null,null,null,null,null,null,null,null,null,null,null,null,"Indique el valor ambiental a cancelar en el periodo del informe"]
[]
[]
[null,"COSTOS ARQUEOLOGÍA"]
[null,"CONCEPTO",null,null,null,null,null,null,null,null,null,null,null,null,null,null,null,null,null,null,null,null,"VALOR"]
[null,"PERSONAL ( relacione el personal requerido durante el periodo del informe)",null,null,null,null,null,null,null,null,null,null,null,null,null,null,null,null,null,null,null,null,"Escriba el valor a cancelar en el periodo del informe"]
[null,"ESTUDIOS COMPLEMENTARIOS (relacione los estudios durante el periodo del informe)"]
[null,"HERRAMIENTA Y EQUÍPO "]
[]
[null,"VALOR ARQUEOLOGÍA A CANCELAR EN EL MES ",null,null,null,null,null,null,null,null,null,null,null,null,null,null,null,null,null,null,null,null,{"$f":"SUM(W177:AB179)","v":0}]
[]
[]
[]
[null,"K.  CONTROL DOCUMENTAL"]
[]
[null,"RADICADO",null,null,null,null,"Fecha",null,null,"ASUNTO",null,null,null,null,"REMITENTE",null,null,null,"DESTINATARIO",null,null,null,"RESPONSABLE DE LA RESPUESTA",null,null,null,"FECHA DE LA RESPUESTA"]
[null,"Relacione el número del COMUNICACIÓN Y DEL radicado de la comunicación",null,null,null,null,"Escriba la fecha de radicado de la comunicación",null,null,"Escriba el tema de la comunicación",null,null,null,null,"Relacione  el nombre del remitente (IDU, Contratista, Interventoría, AAC, etc.)",null,null,null,"Relacione  el nombre del destinatario (Contratista, Interventoría, AAC, etc.)",null,null,null,"Indique el responsable de la emisión de la respuesta",null,null,null,"Relacione la fecha de salida de la respuesta"]
[]
[]
[]
[null,"L.  SEGUIMIENTO A LAS NO CONFORMIDADES Y ACCIONES PREVENTIVAS"]
[]
[null,"1.  VERIFICACIÓN DE ACCIONES CORRECTIVAS Y PREVENTIVAS  DEL PERIODO ANTERIOR"]
[null,"Acción solicitada",null,null,null,null,null,null,null,null,"Fecha",null,null,null,"Plazo",null,null,null,"Cumplió?",null,null,null,"Observaciones"]
[null,null,null,null,null,null,null,null,null,null,null,null,null,null,null,null,null,null,"Si",null,"No"]
[null,"Indique que acciones correctivas y preventivas fueron solicitadas por la interventoría o el IDU durante el mes.",null,null,null,null,null,null,null,null,"Indique la fecha en la cual se solicita la acción ",null,null,null,"Que plazo de tiempo se dio al contratista para el cumplimiento de las medidas solicitadas",null,null,null,"Indicar si se cumplió la acción solicitada",null,"Indicar si NO se cumplió la acción solicitada",null,"Comentarios y /o recomendaciones de la interventoría al IDU respecto del cumplimiento o NO de las acciones solicitadas. Indique las nyuevas acciones propuestas por el Contratista en caso de incumplimiento"]
[null,"SEÑALIZACIÓN DE SENDEROS PEATONALES",null,null,null,null,null,null,null,null,null,null,null,null,"8 DÍAS",null,null,null,null,null,"NO",null,"CUMPLIMIENTO DEMARCACIÓN"]
[null,"REITERACIÓN CUMPLIMIENTO DE NORMAS DE SEGURIDAD INDUSTRIAL SOLICITADOS EN INFORME 1 Y 2)",null,null,null,null,null,null,null,null,null,null,null,null,"3 DÍAS",null,null,null,null,null,"NO",null,"TERCER CUMPLIMIENTO DE LA MISMA ACCIÓN "]
[]
[null,"M.  LECCIONES APRENDIDAS"]
[null,"Indique el conocimiento adquirido resultado de un análisis crítico de factores que pudieron haber afectado en el componente ambiental y SST positiva o negativamente. "]
[]
[]
[]
["N.  ANEXOS "]
[]
[null,"Nombre del Anexo",null,null,null,null,null,null,null,null,null,null,null,"Aplica",null,null,null,"Anexo Número"]
[null,null,null,null,null,null,null,null,null,null,null,null,null,"SI",null,"NO"]
[null,"Escribir el nombre del anexo que hace parte del informe mensual",null,null,null,null,null,null,null,null,null,null,null,"Indique si aplica el anexo mencionado",null,"Indique si NO aplica el anexo mencionado",null,"Indique el número del anexo, de acuerdo con las  distribución en el informe"]
[]
[]
[]
[]
[]
[]
[null,"Aquí deben firmar  los  profesionales aprobados por el IDU (Ambiental, Forestal, Arqueologia, etc.) conforme a la plantilla minima exigida  contractualmente para ese componente",null,null,null,null,null,null,null,null,null,null,null,null,null,null,"Aquí debe firmar el director de la interventoría"]
[null," ",null,null,null,null,null,null,null,null,null,null,null,null,null,null," "]
[null,"Interventor Ambiental",null,null,null,null,null,null,null,null,null,null,null,null,null,null,"Director de Interventoría"]
[]
[]
[null,"Original: Expediente ORFEO No. ______________________"]
[null,"1era copia: interventor"]
[]
[]
["DE INFRAESTRUCTURA"]
["DE DESARROLLO URBANO"]
["JURIDICA"]
["DE GESTION CORPORATIVA"]
[]
[]
[]
["GENERAL"]
["ESTRATEGICA"]
["DE PROYECTOS"]
["DE DISEÑO DE PROYECTOS"]
["DE PREDIOS"]
["DE CONSTRUCCIONES"]
["DE MANTENIMIENTO"]
["DE ADMINISTRACIÓN DE INFRAESTRUCTURA"]
["DE PROCESOS SELECTIVOS"]
["DE GESTIÓN CONTRACTUAL"]
["DE GESTIÓN JUDICIAL"]
["ADMINISTRATIVA Y FINANCIERA"]
["DE APOYO A LA VALORIZACIÓN"]
[]
["DE EJECUCIÓN SUBSISTEMA VIAL"]
["DE EJECUCIÓN SUBSISTEMA TRANSPORTE"]
["DE MANTENIMIENTO SUBSISTEMA VIAL"]
["DE MANTENIMIENTO SUBSISTEMA TRANSPORTE "]
["DE RECURSOS HUMANOS"]
["DE RECURSOS FISICOS "]
["DE RECURSOS TECNOLÓGICOS"]
["DE TESORERIA Y RECAUDO"]
["DE PRESUPUESTO Y CONTABILIDAD"]
["DE OPERACIONES"]
["JURIDICA Y EJECUCIONES FISCALES"]
[]
[]
[]
[]
[]
[]
[]
[]
[]
[]
[]
[]
[]
[]
[]
[]
[]
[]
[]
[]
[]
[]
[]
[]
[]
[]
[]
[]
[]
[]
[]
[]
[]
[]
[]
[]
[]
[]
[]
[]
[]
[]
[]
[]
[]
[]
[]
[1,"Enero",2007,1]
[2,"Febrero",2008,2]
[3,"Marzo ",2009,3]
[4,"Abril",2010,4]
[5,"Mayo",2011,5]
[6,"Junio",2012,6]
[7,"Julio",2013,7]
[8,"Agosto",2014,8]
[9,"Septiembre",2015,9]
[10,"Octubre",2016,10]
[11,"Noviembre",2017]
[12,"Diciembre",2018]
[13,null,2019]
[14,null,2020]
[15,null,2021]
[16,null,2022]
[17]
[18]
[19]
[20]
[21]
[22]
[23]
[24]
[25]
[26]
[27]
[28]
[29]
[30]
[31]
[]
[]
[]
[]
[]
[]
[]
[]
[]
[]
[]
[]
[]
[]
[]
[]
[]
[]
[]
[]
[]
[]
[]
[]
[]
[]
[]
[]
[]
[]
[]
[]
[]
[]
[]
[]
[]
[]
[]
[]
[]
[]
[]
[]
[]
[]
[]
[]
[]
[]
[]
[]
[]
[]
[]
[]
[]
[]
[]
[]
[]
[]
[]
[]
[]
[]
[]
[]
[]
[]
[]
[]
[]
[]
[]
[]
[]
[]
[]
[]
[]
[]
[]
[]
[]
[]
[]
[]
[]
[null,null,null,null,null,null,null,null,null,null,null,null,null,null,null,null,null,null,null,null,null,null,null,null,null,null,null,null,null,null,null,null,null,null,"TIPO DE ACCIDENTE",null,"PARTE DEL CUERPO ","TIPO DE LESION"]
[null,null,null,null,null,null,null,null,null,null,null,null,null,null,null,null,null,null,null,null,null,null,null,null,null,null,null,null,null,null,null,null,null,null,"ACCIDENTE DE TRANSITO",null,"ABDOMEN","RASPADURA"]
[null,null,null,null,null,null,null,null,null,null,null,null,null,null,null,null,null,null,null,null,null,null,null,null,null,null,null,null,null,null,null,null,null,null,"GOLPEADO POR - CON",null,"BRAZO","HERIDA"]
[null,null,null,null,null,null,null,null,null,null,null,null,null,null,null,null,null,null,null,null,null,null,null,null,null,null,null,null,null,null,null,null,null,null,"CORTE CON OBJETOS",null,"CABEZA","ESGUINCE"]
[null,null,null,null,null,null,null,null,null,null,null,null,null,null,null,null,null,null,null,null,null,null,null,null,null,null,null,null,null,null,null,null,null,null,"CAIDA A UN MISMO NIVEL",null,"CADERA","LUXACION"]
[null,null,null,null,null,null,null,null,null,null,null,null,null,null,null,null,null,null,null,null,null,null,null,null,null,null,null,null,null,null,null,null,null,null,"CAIDA DE OBJETOS",null,"CARA","REACCION ALERGICA"]
[null,null,null,null,null,null,null,null,null,null,null,null,null,null,null,null,null,null,null,null,null,null,null,null,null,null,null,null,null,null,null,null,null,null,"SOBREESFUERZO",null,"CUELLO","QUEMADURA"]
[null,null,null,null,null,null,null,null,null,null,null,null,null,null,null,null,null,null,null,null,null,null,null,null,null,null,null,null,null,null,null,null,null,null,"CAIDA DE ALTURA",null,"DEDOS MANO","LUMBAGO"]
[null,null,null,null,null,null,null,null,null,null,null,null,null,null,null,null,null,null,null,null,null,null,null,null,null,null,null,null,null,null,null,null,null,null,"ATRAPAMIENTO",null,"DEDOS PIE","FRECTURA"]
[null,null,null,null,null,null,null,null,null,null,null,null,null,null,null,null,null,null,null,null,null,null,null,null,null,null,null,null,null,null,null,null,null,null,"PISADA SOBRE OBJETOS",null,"ESPALDA","AMPUTACION"]
[null,null,null,null,null,null,null,null,null,null,null,null,null,null,null,null,null,null,null,null,null,null,null,null,null,null,null,null,null,null,null,null,null,null,"PROYECCION DE PARTICULA",null,"HOMBRO","INTOXICACION"]
[null,null,null,null,null,null,null,null,null,null,null,null,null,null,null,null,null,null,null,null,null,null,null,null,null,null,null,null,null,null,null,null,null,null,"LUMBAGO",null,"MANOS","CONTUSION"]
[null,null,null,null,null,null,null,null,null,null,null,null,null,null,null,null,null,null,null,null,null,null,null,null,null,null,null,null,null,null,null,null,null,null,"INDETERMINADO",null,"OJOS","POLITRAUMATISMO"]
[null,null,null,null,null,null,null,null,null,null,null,null,null,null,null,null,null,null,null,null,null,null,null,null,null,null,null,null,null,null,null,null,null,null,"POSTURA INADECUADA",null,"PIES"]
[null,null,null,null,null,null,null,null,null,null,null,null,null,null,null,null,null,null,null,null,null,null,null,null,null,null,null,null,null,null,null,null,null,null,"CONTACTO CON",null,"PIERNAS"]
[null,null,null,null,null,null,null,null,null,null,null,null,null,null,null,null,null,null,null,null,null,null,null,null,null,null,null,null,null,null,null,null,null,null,"ORIGEN ANIMAL",null,"RODILLAS"]
[null,null,null,null,null,null,null,null,null,null,null,null,null,null,null,null,null,null,null,null,null,null,null,null,null,null,null,null,null,null,null,null,null,null,"ORIGEN VEGETAL",null,"TORAX"]
[null,null,null,null,null,null,null,null,null,null,null,null,null,null,null,null,null,null,null,null,null,null,null,null,null,null,null,null,null,null,null,null,null,null,null,null,"MULTIPLE"]
[null,null,null,null,null,null,null,null,null,null,null,null,null,null,null,null,null,null,null,null,null,null,null,null,null,null,null,null,null,null,null,null,null,null,null,null,"INDETERMINADO"]
[null,null,null,null,null,null,null,null,null,null,null,null,null,null,null,null,null,null,null,null,null,null,null,null,null,null,null,null,null,null,null,null,null,null,null,null,"MUERTE"]

{"sheet":"CONTROL","index":2,"n_rows":34,"n_cols":11,"rows_kept":34,"cut":false,"hidden":false,"merged":[[0,0,0,8],[0,9,3,10],[1,0,1,8],[2,0,2,1],[2,2,2,6],[2,7,2,8],[3,0,3,1],[3,2,3,6],[3,7,3,8],[20,1,20,2],[20,3,20,9],[21,1,21,2],[5,0,5,10],[11,0,11,10],[12,1,12,2],[12,3,12,9],[13,1,13,2],[13,3,13,9],[15,0,15,10],[18,1,18,2],[18,3,18,9],[19,1,19,2],[19,3,19,9],[21,3,21,9],[33,0,33,2],[33,3,33,10],[23,1,23,2],[23,3,23,9],[22,1,22,2],[22,3,22,9],[28,0,28,2],[28,3,28,10],[29,0,29,2],[29,3,29,10],[30,0,30,2],[30,3,30,10],[27,0,27,2],[27,3,27,10]]}
["FORMATO"]
["\tINFORME MENSUAL AMBIENTAL Y SST DE INTERVENTORÍA ETAPA CONSTRUCCIÓN Y CONSERVACIÓN"]
["CÓDIGO",null,"PROCESO",null,null,null,null,"VERSIÓN"]
["FO-AC-25",null,"PRACTICAS INTEGRALES DE GESTIÒN",null,null,null,null,5]
[]
[]
[]
[]
[]
[]
[]
[]
[]
[]
[]
["El documento original ha sido aprobado mediante el SID (Sistema de Información Documentada IDU).La autenticidad puede ser verificada a través del código en la intranet"]
[]
[]
["Versión","Fecha",null,"Descripción Modificación",null,null,null,null,null,null,"Folios "]
[5,"2022-08-31",null,"Se elimina el anexo de SST,  para este componente se crea un formato",null,null,null,null,null,null,1]
[4,"2017-05-08",null,"Se actializa los campos de Evaluación de la Gestión Ambiental, y de costos ambientales, se homogeniza las unidades de medida para la información referente a la generación de los RCD´s.",null,null,null,null,null,null,10]
[3,"2017-03-03",null,"Se actualiza el formato en cuanto a campos de RCD's GCR, documentación, permisos ambientales y lecciones aprendidas; se incluye el componente arqueológico; se cambia nomenclatura por SST y deroga el FO-GIP-063",null,null,null,null,null,null,13]
[2,"2005-08-29",null,"Actualización de los Formatos \"Informe mensual de interventoría ambiental\" y \"Derrames ocurridos\"; Unificación de los Formatos \"Informe mensual de interventoría ambiental\" y \"Derrames ocurridos\" y creación del formato \"Informe mensual ambiental y S&SO de interventoría\", se incorpora un aparte para reportar la información S&SO.",null,null,null,null,null,null,10]
[1,"2003-11-24",null,"Creación de los Formatos \"Informe mensual de interventoría ambiental\" y \"Derrames ocurridos\"",null,null,null,null,null,null,10]
[]
[]
[]
["Participaron en la elaboración1",null,null,"Diana Carolina Tafur Vallejo, OGA / Jose Wilmar Giraldo Briceno, OGA / Nestor Fabian Gomez Carvajal, OAP / "]
["Validado por",null,null,"Sandra Milena Del Pilar Rueda Ochoa, OAP Validado el 2022-08-31"]
["Revisado Por",null,null,"Sandra Mayerly Aguilar Perez, OGA Revisado el 2022-08-31"]
["Aprobado por",null,null,"Sandra Mayerly Aguilar Perez, OGA Aprobado el 2022-08-31"]
["1 El alcance de participación en la elaboración de este documento  corresponde a las funciones del área que representan"]
[]
["Tipo de confidencialidad:",null,null,"Pública"]